fUSD/lending_fUSD_20250506
["ID","MTS","AMOUNT","RATE_DAILY","PERIOD"]
[360052815,1746523852385,-466.68740943,0.00019976,2]
[360052816,1746523852394,-475.89788821,0.00019976,2]
[360052817,1746523852403,-211.60839076,0.00019976,2]
[360052818,1746523852415,-464.81431454,0.00019976,2]
[360052819,1746523852424,-471.85023056,0.00019976,2]
[360052820,1746523852434,-450.0,0.00019976,2]
[360052821,1746523852444,-462.55783858,0.00019976,2]
[360052822,1746523852453,-450.0,0.00019976,2]
[360052823,1746523852462,-464.29188012,0.00019976,2]
[360052824,1746523852471,-450.0,0.00019976,2]
[360052825,1746523852480,-461.52698453,0.00019976,2]
[360052826,1746523852489,-457.83102747,0.00019976,2]
[360052827,1746523852499,-525.74970694,0.00019976,2]
[360052828,1746523852508,-483.00209009,0.00019976,2]
[360052829,1746523852517,-459.18362218,0.00019976,2]
[360052830,1746523852526,-469.05034225,0.00019976,2]
[360052831,1746523852536,-475.67376033,0.00019976,2]
[360052832,1746523852545,-450.0,0.00019976,2]
[360052833,1746523852554,-1065.245827,0.00019976,2]
[360052834,1746523852563,-151.0,0.00019976,2]
[360052835,1746523852572,-458.65723798,0.00019976,2]
[360052836,1746523852581,-464.93750283,0.00019976,2]
[360052837,1746523852590,-151.0,0.00019976,2]
[360052838,1746523852599,-1065.245827,0.00019976,2]
[360052839,1746523852608,-450.0,0.00019976,2]
[360052840,1746523852617,-464.59136413,0.00019976,2]
[360052841,1746523852626,-450.0,0.00019976,2]
[360052842,1746523852635,-558.51790896,0.00019976,2]
[360052843,1746523852644,-1467.012021,0.00019976,2]
[360052844,1746523852653,-475.56895281,0.00019976,2]
[360052845,1746523852662,-1467.012021,0.00019976,2]
[360052846,1746523852671,-468.49927021,0.00019976,2]
[360052847,1746523852680,-462.99027497,0.00019976,2]
[360052848,1746523852689,-452.43495792,0.00019976,2]
[360052849,1746523852703,-472.60508321,0.00019976,2]
[360052850,1746523852712,-490.67374932,0.00019976,2]
[360052851,1746523852722,-338.87078421,0.00019976,2]
[360052852,1746523852731,-467.75685485,0.00019976,2]
[360052853,1746523852742,-473.31027761,0.00019976,2]
[360052854,1746523852751,-455.18942608,0.00019976,2]
[360052855,1746523852760,-489.31227236,0.00019976,2]
[360052856,1746523852770,-151.0,0.00019976,2]
[360052857,1746523852785,-467.10135289,0.00019976,2]
[360052858,1746523852798,-472.42931974,0.00019976,2]
[360052859,1746523852808,-500.74813796,0.00019976,2]
[360052860,1746523852817,-588.19954187,0.00019976,2]
[360052861,1746523852828,-565.59099309,0.00019976,2]
[360052862,1746523852837,-471.59840546,0.00019976,2]
[360052863,1746523852846,-498.22023142,0.00019976,2]
[360052864,1746523852855,-473.35012835,0.00019976,2]
[360052865,1746523853019,-536.38047123,0.00019976,2]
[360052866,1746523853029,-456.8244144,0.00019976,2]
[360052867,1746523853039,-469.06964068,0.00019976,2]
[360052868,1746523853048,-506.96798432,0.00019976,2]
[360052869,1746523853058,-450.0,0.00019976,2]
[360052870,1746523853068,-450.0,0.00019976,2]
[360052871,1746523853077,-450.0,0.00019976,2]
[360052872,1746523853087,-469.907164,0.00019976,2]
[360052873,1746523853096,-450.0,0.00019976,2]
[360052874,1746523853105,-450.0,0.00019976,2]
[360052875,1746523853114,-450.0,0.00019976,2]
[360052876,1746523853124,-469.49861408,0.00019976,2]
[360052877,1746523853133,-472.55867241,0.00019976,2]
[360052878,1746523853143,-467.29543659,0.00019976,2]
[360052879,1746523853152,-471.16976748,0.00019976,2]
[360052880,1746523853162,-450.4707212,0.00019976,2]
[360052881,1746523853171,-467.91122558,0.00019976,2]
[360052882,1746523853181,-497.338298,0.00019976,2]
[360052883,1746523853190,-449.43489203,0.00019976,2]
[360052884,1746523853200,-497.338298,0.00019976,2]
[360052885,1746523853210,-525.313493,0.00019976,2]
[360052886,1746523853219,-450.0,0.00019976,2]
[360052887,1746523853228,-500.0,0.00019976,2]
[360052888,1746523853238,-450.0,0.00019976,2]
[360052889,1746523853247,-462.03838612,0.00019976,2]
[360052890,1746523853256,-450.0,0.00019976,2]
[360052891,1746523853265,-473.95040498,0.00019976,2]
[360052892,1746523853274,-450.0,0.00019976,2]
[360052893,1746523853284,-452.6100418,0.00019976,2]
[360052894,1746523853293,-450.0,0.00019976,2]
[360052895,1746523853303,-151.0,0.00019976,2]
[360052896,1746523853312,-450.0,0.00019976,2]
[360052897,1746523853323,-465.49346159,0.00019976,2]
[360052898,1746523853332,-470.7895289,0.00019976,2]
[360052899,1746523853342,-462.19235426,0.00019976,2]
[360052900,1746523853352,-450.0,0.00019976,2]
[360052901,1746523853361,-457.4621898,0.00019976,2]
[360052902,1746523853370,-450.0,0.00019976,2]
[360052903,1746523853380,-450.0,0.00019976,2]
[360052904,1746523853390,-460.73960303,0.00019976,2]
[360052905,1746523853399,-450.0,0.00019976,2]
[360052906,1746523853408,-450.0,0.00019976,2]
[360052907,1746523853418,-450.0,0.00019976,2]
[360052908,1746523853427,-300.0,0.00019976,2]
[360052909,1746523853436,-461.3748769,0.00019976,2]
[360052910,1746523853446,-452.75117988,0.00019976,2]
[360052911,1746523853455,-457.56713913,0.00019976,2]
[360052912,1746523853464,-450.0,0.00019976,2]
[360052913,1746523853473,-467.55622947,0.00019976,2]
[360052914,1746523853482,-450.0,0.00019976,2]
[360052915,1746523853491,-459.4068582,0.00019976,2]
[360052916,1746523853500,-450.0,0.00019976,2]
[360052917,1746523853510,-456.10232193,0.00019976,2]
[360052918,1746523853519,-459.63837063,0.00019976,2]
[360052919,1746523853528,-462.07290937,0.00019976,2]
[360052920,1746523853538,-469.42122833,0.00019976,2]
[360052921,1746523853547,-450.0,0.00019976,2]
[360052922,1746523853556,-462.76206542,0.00019976,2]
[360052923,1746523853565,-463.8549797,0.00019976,2]
[360052924,1746523853575,-450.0,0.00019976,2]
[360052925,1746523853584,-450.0,0.00019976,2]
[360052926,1746523853593,-461.03513197,0.00019976,2]
[360052927,1746523853603,-460.51944651,0.00019976,2]
[360052928,1746523853612,-450.0,0.00019976,2]
[360052929,1746523853621,-368.6613271,0.00019976,2]
[360052930,1746523853630,-450.0,0.00019976,2]
[360052931,1746523853639,-450.0,0.00019976,2]
[360052932,1746523853648,-450.0,0.00019976,2]
[360052933,1746523853658,-154.138638,0.00019976,2]
[360052934,1746523853667,-291.14283107,0.00019976,2]
[360052935,1746523853676,-469.75402106,0.00019976,2]
[360052936,1746523853685,-466.52874999,0.00019976,2]
[360052937,1746523853695,-450.0,0.00019976,2]
[360052938,1746523853707,-464.06513359,0.00019976,2]
[360052939,1746523853716,-1004.14689732,0.00019976,2]
[360052940,1746523853725,-154.138638,0.00019976,2]
[360052941,1746523853734,-468.98802279,0.00019976,2]
[360052942,1746523853744,-450.0,0.00019976,2]
[360052943,1746523853753,-465.67914171,0.00019976,2]
[360052944,1746523853762,-450.0,0.00019976,2]
[360052945,1746523853772,-458.1062059,0.00019976,2]
[360052946,1746523853781,-479.01615889,0.00019976,2]
[360052947,1746523853791,-450.0,0.00019976,2]
[360052948,1746523853800,-450.0,0.00019976,2]
[360052949,1746523853809,-450.0,0.00019976,2]
[360052950,1746523853819,-450.0,0.00019976,2]
[360052951,1746523853828,-558.00043439,0.00019976,2]
[360052952,1746523853837,-450.0,0.00019976,2]
[360052953,1746523853846,-461.11697407,0.00019976,2]
[360052954,1746523853855,-457.37410315,0.00019976,2]
[360052955,1746523853865,-461.49037779,0.00019976,2]
[360052956,1746523853875,-450.0,0.00019976,2]
[360052957,1746523853884,-450.0,0.00019976,2]
[360052958,1746523853893,-472.14390944,0.00019976,2]
[360052959,1746523853903,-459.73224452,0.00019976,2]
[360052960,1746523853912,-151.0,0.00019976,2]
[360052961,1746523853921,-514.17303192,0.00019976,2]
[360052962,1746523853931,-450.0,0.00019976,2]
[360052963,1746523853940,-450.0,0.00019976,2]
[360052964,1746523853948,-450.0,0.00019976,2]
[360052965,1746523853958,-450.0,0.00019976,2]
[360052966,1746523853968,-151.0,0.00019976,2]
[360052967,1746523853977,-525.52437619,0.00019976,2]
[360052968,1746523853986,-450.0,0.00019976,2]
[360052969,1746523853995,-450.0,0.00019976,2]
[360052970,1746523854004,-450.0,0.00019976,2]
[360052971,1746523854014,-454.05766716,0.00019976,2]
[360052972,1746523854023,-689.99,0.00019976,2]
[360052973,1746523854032,-450.0,0.00019976,2]
[360052974,1746523854042,-450.0,0.00019976,2]
[360052975,1746523854051,-450.0,0.00019976,2]
[360052976,1746523854060,-450.0,0.00019976,2]
[360052977,1746523854069,-450.0,0.00019976,2]
[360052978,1746523854079,-597.74508621,0.00019976,2]
[360052979,1746523854088,-674.61,0.00019976,2]
[360052980,1746523854097,-450.0,0.00019976,2]
[360052981,1746523854107,-450.0,0.00019976,2]
[360052982,1746523854117,-450.0,0.00019976,2]
[360052983,1746523854126,-450.0,0.00019976,2]
[360052984,1746523854136,-450.0,0.00019976,2]
[360052985,1746523854145,-450.0,0.00019976,2]
[360052986,1746523854155,-465.75114532,0.00019976,2]
[360052987,1746523854165,-450.0,0.00019976,2]
[360052988,1746523854174,-450.0,0.00019976,2]
[360052989,1746523854184,-450.0,0.00019976,2]
[360052990,1746523854193,-461.70166494,0.00019976,2]
[360052991,1746523854203,-450.0,0.00019976,2]
[360052992,1746523854213,-457.44856319,0.00019976,2]
[360052993,1746523854223,-456.40934215,0.00019976,2]
[360052994,1746523854233,-450.0,0.00019976,2]
[360052995,1746523854243,-459.64602212,0.00019976,2]
[360052996,1746523854254,-450.0,0.00019976,2]
[360052997,1746523854264,-377.08189952,0.00019976,2]
[360052998,1746523854275,-450.0,0.00019976,2]
[360052999,1746523854284,-450.0,0.00019976,2]
[360053000,1746523854293,-508.97372471,0.00019976,2]
[360053001,1746523854303,-450.0,0.00019976,2]
[360053002,1746523854312,-450.0,0.00019976,2]
[360053003,1746523854323,-204.897675,0.00019976,2]
[360053004,1746523854332,-450.0,0.00019976,2]
[360053005,1746523854341,-450.0,0.00019976,2]
[360053006,1746523854351,-450.0,0.00019976,2]
[360053007,1746523854361,-462.33597471,0.00019976,2]
[360053008,1746523854370,-456.55605731,0.00019976,2]
[360053009,1746523854379,-450.0,0.00019976,2]
[360053010,1746523854389,-450.0,0.00019976,2]
[360053011,1746523854397,-450.0,0.00019976,2]
[360053012,1746523854406,-450.0,0.00019976,2]
[360053013,1746523854416,-460.73842447,0.00019976,2]
[360053014,1746523854425,-450.0,0.00019976,2]
[360053015,1746523854434,-517.58093029,0.00019976,2]
[360053016,1746523854443,-450.0,0.00019976,2]
[360053017,1746523854453,-151.0,0.00019976,2]
[360053018,1746523854463,-466.23243261,0.00019976,2]
[360053019,1746523854472,-451.35622373,0.00019976,2]
[360053020,1746523854481,-151.0,0.00019976,2]
[360053021,1746523854491,-450.0,0.00019976,2]
[360053022,1746523854500,-450.0,0.00019976,2]
[360053023,1746523854509,-151.0,0.00019976,2]
[360053024,1746523854519,-406.33251926,0.00019976,2]
[360053025,1746523854528,-451.91817862,0.00019976,2]
[360053026,1746523854537,-450.0,0.00019976,2]
[360053027,1746523854548,-450.0,0.00019976,2]
[360053028,1746523854557,-450.0,0.00019976,2]
[360053029,1746523854567,-450.0,0.00019976,2]
[360053030,1746523854577,-450.0,0.00019976,2]
[360053031,1746523854586,-478.42894862,0.00019976,2]
[360053032,1746523854595,-450.0,0.00019976,2]
[360053033,1746523854605,-450.0,0.00019976,2]
[360053034,1746523854614,-451.12265116,0.00019976,2]
[360053035,1746523854624,-197.932049,0.00019976,2]
[360053036,1746523854633,-197.932049,0.00019976,2]
[360053037,1746523854642,-450.0,0.00019976,2]
[360053038,1746523854651,-450.0,0.00019976,2]
[360053039,1746523854661,-450.0,0.00019976,2]
[360053040,1746523854672,-531.3378157,0.00019976,2]
[360053041,1746523854681,-450.0,0.00019976,2]
[360053042,1746523854690,-566.06713301,0.00019977,2]
[360053043,1746523854704,-497.42686702,0.00019977,2]
[360053044,1746523854713,-450.0,0.00019977,2]
[360053045,1746523854722,-450.0,0.00019977,2]
[360053046,1746523854731,-450.0,0.00019977,2]
[360053047,1746523854742,-450.0,0.00019977,2]
[360053048,1746523854751,-475.14287277,0.00019977,2]
[360053049,1746523854760,-517.8494471,0.00019977,2]
[360053050,1746523854770,-209.61768101,0.00019977,2]
[360053051,1746523854780,-476.01647626,0.00019977,2]
[360053052,1746523854789,-468.49825939,0.00019977,2]
[360053053,1746523854799,-152.486184,0.00019977,2]
[360053054,1746523854808,-433.093833,0.00019977,2]
[360053055,1746523854818,-433.093833,0.00019977,2]
[360053056,1746523854827,-860.12538,0.00019977,2]
[360053057,1746523854839,-860.12538,0.00019977,2]
[360053058,1746523854849,-151.0,0.00019977,2]
[360053059,1746523854859,-151.0,0.00019977,2]
[360053060,1746523854869,-151.0,0.00019977,2]
[360053061,1746523854878,-450.0,0.00019977,2]
[360053062,1746523854888,-524.81,0.00019977,2]
[360053063,1746523854898,-450.0,0.00019977,2]
[360053064,1746523854907,-550.2325539,0.00019977,2]
[360053065,1746523854916,-450.0,0.00019977,2]
[360053066,1746523854925,-12321.66,0.00019977,2]
[360053067,1746523854935,-450.0,0.00019977,2]
[360053068,1746523854944,-450.0,0.00019977,2]
[360053069,1746523854954,-2178.378949,0.00019977,2]
[360053070,1746523854963,-450.0,0.00019977,2]
[360053071,1746523854972,-2178.378949,0.00019977,2]
[360053072,1746523854982,-500.0,0.00019977,2]
[360053073,1746523854991,-450.0,0.00019977,2]
[360053074,1746523855001,-450.0,0.00019977,2]
[360053075,1746523855010,-450.0,0.00019977,2]
[360053076,1746523855019,-450.0,0.00019977,2]
[360053077,1746523855028,-450.0,0.00019977,2]
[360053078,1746523855038,-450.0,0.00019977,2]
[360053079,1746523855051,-450.0,0.00019977,2]
[360053080,1746523855060,-450.0,0.00019977,2]
[360053081,1746523855070,-450.0,0.00019977,2]
[360053082,1746523855079,-537.3,0.00019977,2]
[360053083,1746523855089,-450.0,0.00019977,2]
[360053084,1746523855098,-450.0,0.00019977,2]
[360053085,1746523855108,-450.0,0.00019977,2]
[360053086,1746523855117,-450.0,0.00019977,2]
[360053087,1746523855127,-450.0,0.00019977,2]
[360053088,1746523855136,-450.0,0.00019977,2]
[360053089,1746523855145,-450.0,0.00019977,2]
[360053090,1746523855155,-450.0,0.00019977,2]
[360053091,1746523855164,-151.0,0.00019977,2]
[360053092,1746523855174,-450.0,0.00019977,2]
[360053093,1746523855183,-450.0,0.00019977,2]
[360053094,1746523855193,-450.0,0.00019977,2]
[360053095,1746523855202,-450.0,0.00019977,2]
[360053096,1746523855211,-450.0,0.00019977,2]
[360053097,1746523855220,-450.0,0.00019977,2]
[360053098,1746523855230,-450.0,0.00019977,2]
[360053099,1746523855240,-450.0,0.00019977,2]
[360053100,1746523855250,-450.0,0.00019977,2]
[360053101,1746523855259,-189.08691647,0.00019977,2]
[360053102,1746523855268,-450.0,0.00019977,2]
[360053103,1746523855277,-450.0,0.00019977,2]
[360053104,1746523855286,-450.0,0.00019977,2]
[360053105,1746523855295,-3929.15,0.00019977,2]
[360053106,1746523855305,-933.07,0.00019977,2]
[360053107,1746523855315,-450.0,0.00019977,2]
[360053108,1746523855324,-450.0,0.00019977,2]
[360053109,1746523855333,-604.17,0.00019977,2]
[360053110,1746523855343,-450.0,0.00019977,2]
[360053111,1746523855352,-450.0,0.00019977,2]
[360053112,1746523855362,-450.0,0.00019977,2]
[360053113,1746523855371,-5784.16,0.00019977,2]
[360053114,1746523855380,-450.0,0.00019977,2]
[360053115,1746523855389,-450.0,0.00019977,2]
[360053116,1746523855398,-450.0,0.00019978,2]
[360053117,1746523855407,-580.44,0.00019978,2]
[360053118,1746523855416,-450.0,0.00019978,2]
[360053119,1746523855425,-450.0,0.00019978,2]
[360053120,1746523855435,-452.74375478,0.00019978,2]
[360053121,1746523855444,-505.74398746,0.00019978,2]
[360053122,1746523855453,-450.0,0.00019978,2]
[360053123,1746523855463,-450.0,0.00019978,2]
[360053124,1746523855472,-450.0,0.00019978,2]
[360053125,1746523855482,-459.03831141,0.00019978,2]
[360053126,1746523855491,-561.38309165,0.00019978,2]
[360053127,1746523855500,-455.09762864,0.00019978,2]
[360053128,1746523855510,-450.0,0.00019978,2]
[360053129,1746523855519,-450.0,0.00019978,2]
[360053130,1746523855529,-458.43967223,0.00019978,2]
[360053131,1746523855539,-215.905889,0.00019978,2]
[360053132,1746523855548,-151.0,0.00019978,2]
[360053133,1746523855557,-151.0,0.00019978,2]
[360053134,1746523855566,-151.0,0.00019978,2]
[360053135,1746523855575,-151.0,0.00019978,2]
[360053136,1746523855584,-151.0,0.00019978,2]
[360053137,1746523855594,-151.0,0.00019978,2]
[360053138,1746523855604,-151.0,0.00019978,2]
[360053139,1746523855746,-151.0,0.00019978,2]
[360053140,1746523855757,-167.040254,0.00019978,2]
[360053141,1746523855767,-150.0,0.00019978,2]
[360053142,1746523855776,-150.69136899,0.00019978,2]
[360053143,1746523855787,-151.0,0.00019978,2]
[360053144,1746523855797,-500.0,0.00019978,2]
[360053145,1746523855806,-150.0,0.00019978,2]
[360053146,1746523855816,-150.0,0.00019978,2]
[360053147,1746523855825,-150.0,0.00019978,2]
[360053148,1746523855835,-608.0,0.00019978,2]
[360053149,1746523855844,-219.09230074,0.00019978,2]
[360053150,1746523855854,-150.0,0.00019978,2]
[360053151,1746523855863,-150.0,0.00019978,2]
[360053152,1746523855872,-180.209934,0.00019979,2]
[360053153,1746523855882,-450.0,0.00019979,2]
[360053154,1746523855891,-450.0,0.00019979,2]
[360053155,1746523855902,-363.53218527,0.00019979,2]
[360053156,1746523855911,-450.0,0.00019979,2]
[360053157,1746523855921,-565.18532061,0.00019979,2]
[360053158,1746523855931,-450.0,0.00019979,2]
[360053159,1746523855941,-151.0,0.00019979,2]
[360053160,1746523855951,-515.59,0.00019979,2]
[360053161,1746523855961,-450.0,0.00019979,2]
[360053162,1746523855971,-450.0,0.00019979,2]
[360053163,1746523855980,-450.0,0.00019979,2]
[360053164,1746523855990,-154.710253,0.00019979,2]
[360053165,1746523855999,-450.0,0.00019979,2]
[360053166,1746523856008,-450.0,0.00019979,2]
[360053167,1746523856017,-450.0,0.00019979,2]
[360053168,1746523856027,-450.0,0.00019979,2]
[360053169,1746523856036,-450.0,0.00019979,2]
[360053170,1746523856046,-450.0,0.00019979,2]
[360053171,1746523856056,-450.0,0.00019979,2]
[360053172,1746523856066,-450.0,0.00019979,2]
[360053173,1746523856075,-450.0,0.00019979,2]
[360053174,1746523856084,-450.0,0.00019979,2]
[360053175,1746523856093,-450.0,0.00019979,2]
[360053176,1746523856103,-450.0,0.00019979,2]
[360053177,1746523856112,-450.0,0.00019979,2]
[360053178,1746523856121,-735.597778,0.00019979,2]
[360053179,1746523856131,-450.0,0.00019979,2]
[360053180,1746523856141,-735.597778,0.00019979,2]
[360053181,1746523856150,-151.0,0.00019979,2]
[360053182,1746523856159,-450.0,0.00019979,2]
[360053183,1746523856169,-450.0,0.00019979,2]
[360053184,1746523856179,-450.0,0.00019979,2]
[360053185,1746523856188,-151.0,0.00019979,2]
[360053186,1746523856198,-450.0,0.00019979,2]
[360053187,1746523856207,-450.0,0.00019979,2]
[360053188,1746523856217,-478.13870049,0.00019979,2]
[360053189,1746523856226,-450.0,0.00019979,2]
[360053190,1746523856237,-450.0,0.00019979,2]
[360053191,1746523856247,-151.0,0.00019979,2]
[360053192,1746523856257,-468.65961531,0.00019979,2]
[360053193,1746523856267,-450.0,0.00019979,2]
[360053194,1746523856276,-450.0,0.00019979,2]
[360053195,1746523856286,-450.0,0.00019979,2]
[360053196,1746523856295,-450.0,0.00019979,2]
[360053197,1746523856305,-1065.245827,0.00019979,2]
[360053198,1746523856314,-151.0,0.00019979,2]
[360053199,1746523856323,-450.0,0.00019979,2]
[360053200,1746523856333,-151.0,0.00019979,2]
[360053201,1746523856342,-1065.245827,0.00019979,2]
[360053202,1746523856352,-450.0,0.00019979,2]
[360053203,1746523856362,-450.0,0.00019979,2]
[360053204,1746523856371,-450.0,0.00019979,2]
[360053205,1746523856380,-450.0,0.00019979,2]
[360053206,1746523856389,-450.0,0.00019979,2]
[360053207,1746523856399,-450.0,0.00019979,2]
[360053208,1746523856407,-450.0,0.00019979,2]
[360053209,1746523856416,-151.0,0.00019979,2]
[360053210,1746523856424,-450.0,0.00019979,2]
[360053211,1746523856432,-411.13625988,0.00019979,2]
[360053212,1746523856441,-151.0,0.00019979,2]
[360053213,1746523856450,-540.187369,0.00019979,2]
[360053214,1746523856459,-540.187369,0.00019979,2]
[360053215,1746523856468,-151.0,0.00019979,2]
[360053216,1746523856477,-197.932049,0.00019979,2]
[360053217,1746523856487,-197.932049,0.00019979,2]
[360053218,1746523856496,-470.0,0.0001998,2]
[360053219,1746523856505,-450.0,0.0001998,2]
[360053220,1746523856515,-376.29977537,0.0001998,2]
[360053221,1746523856524,-484.78178952,0.0001998,2]
[360053222,1746523856533,-151.360372,0.0001998,2]
[360053223,1746523856542,-151.0,0.0001998,2]
[360053224,1746523856551,-151.0,0.0001998,2]
[360053225,1746523856560,-151.0,0.0001998,2]
[360053226,1746523856569,-151.0,0.0001998,2]
[360053227,1746523856579,-151.0,0.0001998,2]
[360053228,1746523856587,-241.024724,0.0001998,2]
[360053229,1746523856596,-151.0,0.0001998,2]
[360053230,1746523856605,-571.618876,0.0001998,2]
[360053231,1746523856616,-571.618876,0.0001998,2]
[360053232,1746523856625,-151.0,0.0001998,2]
[360053233,1746523856634,-1616.972146,0.0001998,2]
[360053234,1746523856643,-151.0,0.0001998,2]
[360053235,1746523856652,-223.619805,0.0001998,2]
[360053236,1746523856661,-151.0,0.0001998,2]
[360053237,1746523856670,-1467.012021,0.0001998,2]
[360053238,1746523856679,-1467.012021,0.0001998,2]
[360053239,1746523856688,-151.0,0.0001998,2]
[360053240,1746523856701,-497.338298,0.0001998,2]
[360053241,1746523856710,-497.338298,0.0001998,2]
[360053242,1746523856719,-2178.378949,0.0001998,2]
[360053243,1746523856728,-2178.378949,0.0001998,2]
[360053244,1746523856739,-154.138638,0.0001998,2]
[360053245,1746523856748,-154.138638,0.0001998,2]
[360053246,1746523856757,-151.0,0.0001998,2]
[360053247,1746523856766,-151.0,0.0001998,2]
[360053248,1746523856776,-151.0,0.0001998,2]
[360053249,1746523856785,-151.0,0.0001998,2]
[360053250,1746523856794,-160.78490629,0.00019981,2]
[360053251,1746523856803,-450.0,0.00019981,2]
[360053252,1746523856812,-461.19611348,0.00019981,2]
[360053253,1746523856821,-450.0,0.00019981,2]
[360053254,1746523856831,-157.602835,0.00019981,2]
[360053255,1746523856840,-469.6671103,0.00019981,2]
[360053256,1746523856849,-488.07450035,0.00019981,2]
[360053257,1746523856859,-476.09834825,0.00019981,2]
[360053258,1746523856867,-472.6494436,0.00019981,2]
[360053259,1746523856877,-154.535928,0.00019981,2]
[360053260,1746523856886,-580.04113768,0.00019981,2]
[360053261,1746523856895,-433.093833,0.00019981,2]
[360053262,1746523856905,-433.093833,0.00019981,2]
[360053263,1746523856914,-860.12538,0.00019981,2]
[360053264,1746523856924,-860.12538,0.00019981,2]
[360053265,1746523856933,-151.0,0.00019981,2]
[360053266,1746523856943,-151.0,0.00019981,2]
[360053267,1746523856952,-189.33484,0.00019981,23]
[360053268,1746523856961,-532.09,0.00019981,2]
[360053269,1746523856970,-1809.3,0.00019981,2]
[360053270,1746523856980,-450.0,0.00019981,2]
[360053271,1746523856989,-450.0,0.00019981,2]
[360053272,1746523856999,-1171.46,0.00019981,2]
[360053273,1746523857008,-2068.19888533,0.00019981,2]
[360053274,1746523857017,-163.50765239,0.00019981,2]
[360053275,1746523857027,-577.59797858,0.00019983,2]
[360053276,1746523857036,-488.89743205,0.00019983,2]
[360053277,1746523857046,-450.0,0.00019983,2]
[360053278,1746523857056,-450.0,0.00019983,2]
[360053279,1746523857065,-450.0,0.00019983,2]
[360053280,1746523857074,-510.12060902,0.00019983,2]
[360053281,1746523857083,-450.0,0.00019983,2]
[360053282,1746523857092,-216.40502554,0.00019983,2]
[360053283,1746523857102,-450.0,0.00019983,2]
[360053284,1746523857112,-521.01,0.00019983,2]
[360053285,1746523857121,-450.0,0.00019983,2]
[360053286,1746523857131,-450.0,0.00019983,2]
[360053287,1746523857140,-450.0,0.00019983,2]
[360053288,1746523857149,-450.0,0.00019983,2]
[360053289,1746523857159,-450.0,0.00019983,2]
[360053290,1746523857171,-450.0,0.00019983,2]
[360053291,1746523857180,-450.0,0.00019983,2]
[360053292,1746523857191,-450.0,0.00019983,2]
[360053293,1746523857201,-450.0,0.00019983,2]
[360053294,1746523857212,-450.0,0.00019983,2]
[360053295,1746523857222,-450.0,0.00019983,2]
[360053296,1746523857231,-152.65,0.00019983,2]
[360053297,1746523857241,-450.0,0.00019983,2]
[360053298,1746523857251,-194.90395162,0.00019983,2]
[360053299,1746523857262,-580.63144996,0.00019983,2]
[360053300,1746523857273,-550.13,0.00019983,2]
[360053301,1746523857283,-450.0,0.00019983,2]
[360053302,1746523857292,-450.0,0.00019983,2]
[360053303,1746523857302,-674.61,0.00019983,2]
[360053304,1746523857311,-576.58,0.00019983,2]
[360053305,1746523857320,-450.0,0.00019983,2]
[360053306,1746523857330,-450.0,0.00019983,2]
[360053307,1746523857339,-450.0,0.00019983,2]
[360053308,1746523857348,-450.0,0.00019983,2]
[360053309,1746523857358,-450.0,0.00019983,2]
[360053310,1746523857368,-450.0,0.00019983,2]
[360053311,1746523857377,-450.0,0.00019983,2]
[360053312,1746523857386,-450.0,0.00019983,2]
[360053313,1746523857395,-1251.0,0.00019984,2]
[360053314,1746523857404,-450.0,0.00019984,2]